bitfinex-derivatives/quotes_BTCF0:USTF0_20240830
["timestamp","ask_amount","ask_price","bid_price","bid_amount"]
[1725016530276,0.28831901,59491.0,59487.0,0.084039]
[1725016530483,0.29,59488.0,59487.0,0.084039]
[1725016530679,0.41,59488.0,59487.0,0.084039]
[1725016531374,0.41,59488.0,59487.0,0.085039]
[1725016531570,0.41,59488.0,59487.0,0.001]
[1725016532971,0.12,59488.0,59487.0,0.375039]
[1725016533175,0.41,59488.0,59487.0,0.375039]
[1725016533570,0.12,59488.0,59487.0,0.375039]
[1725016534176,0.12,59488.0,59487.0,0.543117]
[1725016534880,0.12,59488.0,59487.0,0.59344165]
[1725016535273,0.12,59488.0,59487.0,0.543117]
[1725016538374,0.12,59488.0,59487.0,0.459078]
[1725016538980,0.12,59488.0,59487.0,0.819878]
[1725016538981,0.41,59488.0,59487.0,0.819878]
[1725016539183,0.41,59488.0,59487.0,0.459078]
[1725016541375,0.16290922,59488.0,59487.0,0.459078]
[1725016541688,0.06,59488.0,59487.0,0.459078]
[1725016542081,0.06,59488.0,59487.0,0.375039]
[1725016542279,0.35,59488.0,59487.0,0.375039]
[1725016542684,0.434037,59488.0,59487.0,0.085039]
[1725016542881,0.434037,59488.0,59487.0,0.001]
[1725016543087,0.434037,59488.0,59487.0,0.085039]
[1725016543387,0.144037,59488.0,59487.0,0.085039]
[1725016545088,0.434037,59488.0,59487.0,0.085039]
[1725016545897,0.434037,59488.0,59487.0,0.001]
[1725016548998,0.54996,59488.0,59487.0,0.375039]
[1725016549200,0.25996,59488.0,59487.0,0.375039]
[1725016549589,0.25996,59488.0,59487.0,0.085039]
[1725016550996,0.343997,59488.0,59487.0,0.085039]
[1725016551594,0.25996,59488.0,59487.0,0.085039]
[1725016551790,0.06,59488.0,59487.0,0.085039]
[1725016553295,0.06,59488.0,59487.0,0.13536365]
[1725016553693,0.06,59488.0,59487.0,0.085039]
[1725016553894,0.06,59488.0,59487.0,0.13536365]
[1725016555098,0.144037,59488.0,59487.0,0.13536365]
[1725016555996,0.264037,59488.0,59487.0,0.085039]
[1725016556198,0.18,59488.0,59487.0,0.085039]
[1725016565304,0.06,59488.0,59487.0,0.085039]
[1725016565605,0.14788,59490.0,59489.0,0.252108]
[1725016565807,0.14788,59490.0,59489.0,0.372108]
[1725016566809,0.002,59490.0,59489.0,0.372108]
[1725016567110,0.022,59490.0,59489.0,0.372108]
[1725016567412,0.023,59490.0,59489.0,0.478408]
[1725016568499,0.023,59490.0,59489.0,0.839208]
[1725016570202,0.023,59490.0,59489.0,0.478408]
[1725016570395,0.023,59490.0,59489.0,0.839208]
[1725016571603,0.02539899,59497.0,59496.0,0.084026]
[1725016571816,0.35942399,59497.0,59496.0,0.084026]
[1725016572602,0.084032,59492.0,59491.0,0.00025201]
[1725016572908,0.778864,59492.0,59491.0,0.00025201]
[1725016574002,0.952864,59492.0,59491.0,0.00025201]
[1725016574914,0.956864,59492.0,59491.0,0.00025201]
[1725016576011,1.205784,59492.0,59491.0,0.00025201]
[1725016582008,1.25696273,59492.0,59491.0,0.00025201]
[1725016582609,0.89616273,59492.0,59491.0,0.00025201]
[1725016582812,1.25696273,59492.0,59491.0,0.00025201]
[1725016583315,1.76124273,59492.0,59491.0,0.00025201]
[1725016583830,1.40044273,59492.0,59491.0,0.00025201]
[1725016584119,1.76124273,59492.0,59491.0,0.00025201]
[1725016584328,1.25696273,59492.0,59491.0,0.00025201]
[1725016585022,1.205784,59492.0,59491.0,0.00025201]
[1725016586426,1.25689197,59492.0,59491.0,0.00025201]
[1725016587832,1.34092397,59492.0,59491.0,0.00025201]
[1725016594133,1.17092397,59492.0,59491.0,0.00025201]
[1725016598635,0.81012397,59492.0,59491.0,0.00025201]
[1725016598835,1.17092397,59492.0,59491.0,0.00025201]
[1725016599034,0.81012397,59492.0,59491.0,0.00025201]
[1725016599335,1.17092397,59492.0,59491.0,0.00025201]
[1725016601837,0.52205997,59492.0,59491.0,0.08428501]
[1725016602036,0.38692,59492.0,59491.0,0.20428501]
[1725016602536,0.38692,59492.0,59491.0,0.08428501]
[1725016602742,0.18910797,59492.0,59491.0,0.08428501]
[1725016602930,0.138,59492.0,59491.0,0.08428501]
[1725016604143,0.222032,59492.0,59491.0,0.00025201]
[1725016604944,0.582832,59492.0,59491.0,0.00025201]
[1725016605143,0.63393997,59492.0,59491.0,0.00025201]
[1725016605347,0.222032,59492.0,59491.0,0.00025201]
[1725016606042,0.356472,59492.0,59491.0,0.00025201]
[1725016607140,0.801304,59492.0,59491.0,0.00025201]
[1725016608646,0.85206004,59492.0,59491.0,0.00025201]
[1725016612146,0.97206004,59492.0,59491.0,0.00025201]
[1725016618142,0.88802804,59492.0,59491.0,0.00025201]
[1725016618550,0.80399604,59492.0,59491.0,0.00025201]
[1725016618751,0.44319604,59492.0,59491.0,0.08428501]
[1725016619048,0.39244,59492.0,59491.0,0.08428501]
[1725016619653,0.27244,59492.0,59491.0,0.08428501]
[1725016619853,0.39244,59492.0,59491.0,0.08428501]
[1725016620556,0.39244,59492.0,59491.0,0.00025201]
[1725016620557,0.837272,59492.0,59491.0,0.00025201]
[1725016620758,0.921304,59492.0,59491.0,0.00025201]
[1725016621055,0.97206004,59492.0,59491.0,0.00025201]
[1725016622855,0.61126004,59492.0,59491.0,0.00025201]
[1725016629168,0.08404,59487.0,59484.0,0.087942]
[1725016629464,0.12,59485.0,59484.0,0.084042]
[1725016629660,0.24,59485.0,59484.0,0.084042]
[1725016630260,0.24,59485.0,59484.0,0.088042]
[1725016630865,0.24,59485.0,59484.0,0.091042]
[1725016631462,0.324042,59485.0,59484.0,0.007]
[1725016632962,0.525882,59485.0,59484.0,0.007]
[1725016634767,0.55636962,59485.0,59484.0,0.007]
[1725016634973,0.69116766,59485.0,59484.0,0.007]
[1725016635163,0.69116766,59485.0,59475.0,0.05041291]
[1725016635164,0.084052,59478.0,59474.0,0.0522]
[1725016635366,0.084056,59475.0,59474.0,0.0522]
[1725016635663,0.324056,59475.0,59474.0,0.0522]
[1725016636874,0.24,59475.0,59474.0,0.0522]
[1725016637570,0.242,59475.0,59474.0,0.0522]
[1725016638269,0.244,59475.0,59474.0,0.0522]
[1725016639078,0.27418808,59475.0,59474.0,0.136257]
[1725016639580,0.15418808,59475.0,59474.0,0.256257]
[1725016639974,0.27418808,59475.0,59474.0,0.136257]
[1725016641884,0.27418808,59475.0,59474.0,0.0522]
[1725016642775,0.35824408,59475.0,59474.0,0.0522]
[1725016644080,0.35824408,59475.0,59467.0,0.1239]
[1725016644081,1.37858808,59475.0,59467.0,0.0039]
[1725016644286,0.084067,59467.0,59464.0,0.0039]
[1725016644471,0.12,59465.0,59463.0,0.084073]
[1725016644677,0.12,59464.0,59463.0,0.084073]
[1725016644879,0.23,59464.0,59463.0,0.084073]
[1725016645193,0.23,59464.0,59458.0,0.0039]
[1725016645376,0.12,59462.0,59461.0,0.12]
[1725016645570,0.2,59462.0,59461.0,0.204076]
[1725016646787,0.2,59462.0,59461.0,0.084076]
[1725016647669,0.201,59462.0,59461.0,0.084076]
[1725016647882,0.33044,59462.0,59461.0,0.084076]
[1725016648183,0.21044,59462.0,59461.0,0.708596]
[1725016648376,0.21044,59462.0,59461.0,1.308596]
[1725016648682,0.00025223,59470.0,59462.0,0.084074]
[1725016648882,0.00848994,59477.0,59474.0,0.084057]
[1725016648883,0.0039,59475.0,59474.0,0.084057]
[1725016649087,0.00848994,59477.0,59476.0,0.084054]
[1725016649277,0.00848994,59477.0,59476.0,0.288108]
[1725016649471,0.00848994,59477.0,59476.0,1.308454]
[1725016649675,0.0039,59485.0,59484.0,0.084043]
[1725016649874,0.03,59485.0,59484.0,0.204043]
[1725016650184,0.03,59485.0,59484.0,0.374043]
[1725016650185,0.32,59485.0,59484.0,0.374043]
[1725016650385,0.32,59485.0,59484.0,0.084043]
[1725016650984,0.334,59485.0,59484.0,0.084043]
[1725016651391,0.348,59485.0,59484.0,0.084043]
[1725016651690,0.058,59485.0,59484.0,0.374043]
[1725016652387,0.348,59485.0,59484.0,0.374043]
[1725016652581,0.348,59485.0,59484.0,0.084043]
[1725016654185,0.348,59485.0,59480.0,0.3608]
[1725016654186,0.7088,59485.0,59480.0,0.084049]
[1725016654381,0.7088,59485.0,59481.0,0.084047]
[1725016654382,0.29,59482.0,59481.0,0.084047]
[1725016654592,0.41,59482.0,59481.0,0.084047]
[1725016655396,0.41,59482.0,59481.0,0.374047]
[1725016655591,0.422,59482.0,59481.0,0.084047]
[1725016656901,0.422,59482.0,59479.0,0.00025223]
[1725016656902,0.434,59482.0,59479.0,0.00025223]
[1725016657197,0.374049,59480.0,59479.0,0.00025223]
[1725016657396,0.504049,59480.0,59479.0,0.00025223]
[1725016657995,0.864849,59480.0,59479.0,0.00025223]
[1725016658294,0.504049,59480.0,59479.0,0.00025223]
[1725016658500,0.42,59480.0,59479.0,0.00025223]
[1725016658691,0.429,59480.0,59479.0,0.00025223]
[1725016658996,0.7898,59480.0,59479.0,0.00025223]
[1725016659186,0.82073021,59480.0,59479.0,0.00025223]
[1725016659388,0.95631593,59480.0,59479.0,0.00025223]
[1725016659602,0.90477921,59480.0,59479.0,0.00025223]
[1725016659803,0.91477921,59480.0,59479.0,0.00025223]
[1725016660091,0.9663212,59480.0,59479.0,0.00025223]
[1725016660285,0.55397921,59480.0,59479.0,0.00025223]
[1725016661497,0.91477921,59480.0,59479.0,0.00025223]
[1725016661899,0.55397921,59480.0,59479.0,0.00025223]
[1725016662100,0.91477921,59480.0,59479.0,0.00025223]
[1725016662902,1.08568556,59480.0,59479.0,0.00025223]
[1725016668800,0.79568556,59480.0,59479.0,0.00025223]
[1725016669006,1.08568556,59480.0,59479.0,0.00025223]
[1725016669207,0.72488556,59480.0,59479.0,0.00025223]
[1725016670106,0.55488556,59480.0,59479.0,0.00025223]
[1725016671405,0.50337921,59480.0,59479.0,0.00025223]
[1725016675507,0.38337921,59480.0,59479.0,0.00025223]
[1725016675708,0.50337921,59480.0,59479.0,0.00025223]
[1725016676696,0.86417921,59480.0,59479.0,0.00025223]
[1725016676898,0.91568556,59480.0,59479.0,0.00025223]
[1725016678211,0.55488556,59480.0,59479.0,0.00025223]
[1725016678512,0.91568556,59480.0,59479.0,0.00025223]
[1725016679706,0.71186895,59480.0,59479.0,0.00025223]
[1725016679906,0.73186895,59480.0,59479.0,0.00025223]
[1725016681418,0.76276426,59480.0,59479.0,0.00025223]
[1725016681614,0.84681326,59480.0,59479.0,0.00025223]
[1725016682515,0.76276426,59480.0,59479.0,0.00025223]
[1725016682815,0.84681326,59480.0,59479.0,0.00025223]
[1725016688311,0.48601326,59480.0,59479.0,0.00025223]
[1725016688509,0.79530691,59480.0,59479.0,0.00025223]
[1725016688710,0.84681326,59480.0,59479.0,0.00025223]
[1725016691727,0.36601326,59480.0,59479.0,0.00025223]
[1725016691918,0.43450691,59480.0,59479.0,0.00025223]
[1725016692622,0.35045791,59480.0,59479.0,0.00025223]
[1725016693124,0.084053,59477.0,59464.0,0.0045]
[1725016693315,0.3608,59475.0,59468.0,0.1093]
[1725016693627,0.11,59475.0,59474.0,0.084057]
[1725016694313,0.11,59475.0,59468.0,0.4701]
[1725016694314,0.11,59475.0,59471.0,0.08406]
[1725016694528,0.11,59475.0,59472.0,0.08406]
[1725016695015,0.12,59473.0,59472.0,0.08406]
[1725016695216,0.24,59473.0,59472.0,0.08406]
[1725016696016,0.24,59473.0,59472.0,0.08506]
[1725016696220,0.247,59473.0,59472.0,0.08506]
[1725016697517,0.253,59473.0,59472.0,0.08506]
[1725016698216,0.253,59473.0,59472.0,0.001]
[1725016698422,0.337059,59473.0,59472.0,0.001]
[1725016699031,0.133,59473.0,59472.0,0.001]
[1725016699216,0.133,59473.0,59472.0,1.3095]
[1725016699629,0.013,59473.0,59472.0,1.3095]
[1725016702321,0.013,59473.0,59472.0,1.39356]
[1725016702922,0.013,59473.0,59472.0,1.44396644]
[1725016703117,0.013,59473.0,59472.0,1.47762]
[1725016703730,0.013,59473.0,59472.0,1.54462799]
[1725016703936,0.00025223,59480.0,59479.0,0.1681]
[1725016704124,0.00025223,59480.0,59479.0,1.53562]
[1725016704323,0.00025223,59480.0,59479.0,2.30432]
[1725016705317,0.01425223,59480.0,59479.0,2.30432]
[1725016705815,0.01425223,59480.0,59479.0,2.30532]
[1725016705816,0.02825223,59480.0,59479.0,2.30532]
[1725016706220,0.03825223,59480.0,59479.0,2.30532]
[1725016707826,0.02825223,59480.0,59479.0,2.30532]
[1725016708624,0.02825223,59480.0,59479.0,2.38937]
[1725016709639,2.3e-07,59480.0,59479.0,2.38937]
[1725016709848,0.0039,59497.0,59495.0,0.168056]
[1725016710036,0.05600635,59500.0,59495.0,1.378644]
[1725016710037,0.08208945,59500.0,59495.0,1.378644]
[1725016710235,0.08208945,59500.0,59495.0,2.031844]
[1725016710236,0.0305831,59500.0,59495.0,2.031844]
[1725016710534,0.12,59506.0,59495.0,2.137844]
[1725016710828,0.05150635,59511.0,59495.0,2.137844]
[1725016710829,0.00025223,59501.0,59500.0,0.084021]
[1725016711023,0.00025223,59501.0,59500.0,0.564821]
[1725016711024,0.01025223,59501.0,59500.0,0.564821]
[1725016712024,0.02425223,59501.0,59500.0,0.735821]
[1725016712540,0.03825223,59501.0,59500.0,0.736821]
[1725016716433,0.03825223,59501.0,59500.0,0.879341]
[1725016717527,0.03825223,59501.0,59500.0,2.151583]
[1725016717528,0.02825223,59501.0,59500.0,2.151583]
[1725016717837,0.02825223,59501.0,59500.0,2.067562]
[1725016718229,0.02825223,59501.0,59500.0,2.151583]
[1725016718420,0.02825223,59501.0,59500.0,1.325042]
[1725016718729,0.02825223,59501.0,59500.0,2.067522]
[1725016718944,0.02825223,59501.0,59500.0,1.467522]
[1725016720430,0.03825223,59501.0,59500.0,1.106722]
[1725016720631,0.02825223,59501.0,59500.0,2.428322]
[1725016720831,0.02825223,59501.0,59500.0,2.512343]
[1725016721034,0.02825223,59501.0,59500.0,2.428322]
[1725016721236,0.02825223,59501.0,59500.0,2.802343]
[1725016722123,0.02825223,59501.0,59500.0,2.298143]
[1725016722427,0.02825223,59501.0,59500.0,2.802343]
[1725016722833,0.02825223,59501.0,59500.0,2.512343]
[1725016724334,0.02825223,59501.0,59500.0,1.790743]
[1725016724538,0.02825223,59501.0,59500.0,2.428322]
[1725016724740,0.02825223,59501.0,59500.0,2.512343]
[1725016724940,0.02825223,59501.0,59500.0,2.428322]
[1725016725140,0.03825223,59501.0,59500.0,2.512343]
[1725016725439,0.03825223,59501.0,59500.0,2.428322]
[1725016726135,0.02825223,59501.0,59500.0,2.512343]
[1725016726341,0.02825223,59501.0,59500.0,1.912343]
[1725016726537,0.03825223,59501.0,59500.0,1.912343]
[1725016726934,0.02825223,59501.0,59500.0,1.828322]
[1725016727334,0.03825223,59501.0,59500.0,1.828322]
[1725016727532,0.02825223,59501.0,59500.0,1.828322]
[1725016727736,0.04125223,59501.0,59500.0,1.826322]
[1725016728239,0.04125223,59501.0,59500.0,1.104722]
[1725016728440,0.04125223,59501.0,59500.0,2.426322]
[1725016728740,0.04125223,59501.0,59500.0,1.704722]
[1725016728937,0.04125223,59501.0,59500.0,2.510343]
[1725016729241,0.04125223,59501.0,59500.0,2.426322]
[1725016729634,0.04125223,59501.0,59500.0,2.510343]
[1725016730236,0.00125223,59501.0,59500.0,2.510343]
[1725016730932,0.00025223,59501.0,59500.0,2.510343]
[1725016731136,0.00125223,59501.0,59500.0,2.510343]
[1725016732235,0.01125223,59501.0,59500.0,2.426322]
[1725016732538,0.01125223,59501.0,59500.0,1.826322]
[1725016733352,0.01125223,59501.0,59500.0,1.910343]
[1725016734541,0.01125223,59501.0,59500.0,1.826322]
[1725016734945,0.01125223,59501.0,59500.0,1.910343]
[1725016735140,0.01125223,59501.0,59500.0,2.510343]
[1725016735737,0.083999,59516.0,59500.0,2.54828]
[1725016735946,0.0603,59513.0,59512.0,0.084004]
[1725016736148,0.1664,59513.0,59512.0,0.374004]
[1725016737246,0.19681861,59513.0,59512.0,0.375004]
[1725016737741,0.20281861,59513.0,59512.0,0.376004]
[1725016738142,0.20281861,59513.0,59512.0,0.544012]
[1725016738452,0.00025223,59518.0,59517.0,0.167994]
[1725016738660,0.00025223,59518.0,59517.0,0.961274]
[1725016738661,0.03025223,59518.0,59517.0,0.961274]
[1725016739246,0.0599433,59518.0,59517.0,0.961274]
[1725016740239,0.0599433,59518.0,59517.0,0.963274]
[1725016741152,0.0599433,59518.0,59517.0,1.047271]
[1725016741559,0.03025223,59518.0,59517.0,1.047271]
[1725016741857,0.0039,59527.0,59526.0,0.167968]
[1725016742043,0.444769,59537.0,59526.0,0.167968]
[1725016742044,0.1704,59533.0,59532.0,0.083975]
[1725016742244,0.2204,59533.0,59532.0,0.734775]
[1725016742449,0.1675,59533.0,59532.0,0.734775]
[1725016743048,0.1675,59533.0,59532.0,0.875615]
[1725016743246,0.11,59533.0,59532.0,0.95959]
[1725016744161,0.0557,59534.0,59533.0,0.167948]
[1725016744448,0.0657,59534.0,59533.0,0.308788]
[1725016745356,0.0657,59534.0,59533.0,0.168948]
[1725016745557,0.0647,59534.0,59533.0,0.309748]
[1725016746742,0.0647,59534.0,59533.0,0.310748]
[1725016748749,0.0647,59534.0,59533.0,0.169948]
[1725016749054,0.0647,59534.0,59533.0,0.226774]
[1725016749254,0.0647,59534.0,59533.0,0.516774]
[1725016750446,0.0647,59534.0,59533.0,0.085974]
[1725016750650,0.148673,59534.0,59533.0,0.002]
[1725016750956,0.148673,59534.0,59533.0,0.292]
[1725016751849,0.148673,59534.0,59533.0,0.002]
[1725016752050,1.252593,59534.0,59533.0,0.002]
[1725016752965,1.336566,59534.0,59533.0,0.002]
[1725016754052,1.336566,59534.0,59527.0,0.00415202]
[1725016754053,0.083981,59528.0,59527.0,0.00415202]
[1725016754351,0.864781,59528.0,59527.0,0.00025202]
[1725016754959,0.4908,59528.0,59527.0,0.08423402]
[1725016755763,0.4908,59528.0,59527.0,0.08523402]
[1725016756354,0.4908,59528.0,59527.0,0.00125202]
[1725016756566,0.574781,59528.0,59527.0,0.00225202]
[1725016757258,0.630281,59528.0,59527.0,0.00125202]
[1725016757462,0.66241719,59528.0,59527.0,0.00225202]
[1725016758161,0.66341719,59528.0,59527.0,0.00225202]
[1725016759767,0.66241719,59528.0,59527.0,0.00225202]
[1725016760465,0.66141719,59528.0,59527.0,0.00225202]
[1725016760666,0.74539819,59528.0,59527.0,0.00225202]
[1725016761259,0.74539819,59528.0,59527.0,0.00125202]
[1725016761461,0.74439819,59528.0,59527.0,0.00125202]
[1725016761666,0.74539819,59528.0,59527.0,0.00225202]
[1725016762767,1.03539819,59528.0,59527.0,0.00225202]
[1725016765864,0.67459819,59528.0,59527.0,0.00225202]
[1725016766172,1.03539819,59528.0,59527.0,0.00225202]
[1725016766369,1.53935819,59528.0,59527.0,0.00225202]
[1725016766760,1.53835819,59528.0,59527.0,0.00125202]
[1725016766968,1.53935819,59528.0,59527.0,0.00225202]
[1725016767374,2.13935819,59528.0,59527.0,0.00225202]
[1725016767976,2.33759819,59528.0,59527.0,0.00225202]
[1725016768172,2.42157919,59528.0,59527.0,0.00225202]
[1725016768469,0.373991,59521.0,59520.0,0.0039]
[1725016768774,0.083995,59519.0,59517.0,0.444796]
[1725016768979,0.12,59519.0,59517.0,0.444796]
[1725016769164,0.29,59518.0,59517.0,0.734796]
[1725016769474,0.41,59518.0,59517.0,0.734796]
[1725016770165,0.41,59518.0,59517.0,0.735796]
[1725016770577,0.12,59518.0,59517.0,0.735796]
[1725016770874,0.121,59518.0,59517.0,0.735796]
[1725016771462,0.15292723,59518.0,59517.0,0.736796]
[1725016771869,0.15292723,59518.0,59512.0,0.32155202]
[1725016771870,1.90776723,59518.0,59512.0,0.00025202]
[1725016772068,0.443802,59513.0,59512.0,0.00025202]
[1725016772271,0.484002,59513.0,59512.0,0.00025202]
[1725016772674,0.844802,59513.0,59512.0,0.00025202]
[1725016772978,0.843802,59513.0,59512.0,0.00025202]
[1725016773577,0.845802,59513.0,59512.0,0.00125202]
[1725016773780,0.844802,59513.0,59512.0,0.00125202]
[1725016774276,0.842802,59513.0,59512.0,0.00025202]
[1725016774483,0.847802,59513.0,59512.0,0.00225202]
[1725016774875,0.487002,59513.0,59512.0,0.00225202]
[1725016775080,0.847802,59513.0,59512.0,0.00225202]
[1725016775271,0.931804,59513.0,59512.0,0.00225202]
[1725016775471,0.931804,59513.0,59505.0,0.0039]
[1725016775472,0.084011,59507.0,59505.0,0.0039]
[1725016775667,0.29,59506.0,59504.0,0.084015]
[1725016775884,0.4,59506.0,59504.0,0.084015]
[1725016776183,0.4,59506.0,59501.0,0.3608]
[1725016776184,0.084013,59505.0,59501.0,0.3608]
[1725016776379,0.29,59502.0,59501.0,0.3608]
[1725016776574,0.41,59502.0,59501.0,0.3608]
[1725016776975,0.12,59502.0,59501.0,0.3608]
[1725016777168,0.12,59502.0,59501.0,0.444818]
[1725016777384,0.41,59502.0,59501.0,0.444818]
[1725016777584,0.411,59502.0,59501.0,0.444818]
[1725016777777,0.412,59502.0,59501.0,0.444818]
[1725016779984,0.412,59502.0,59501.0,0.084018]
[1725016780181,0.412,59502.0,59501.0,0.444818]
[1725016780776,0.496018,59502.0,59501.0,0.444818]
[1725016781881,0.526843,59502.0,59501.0,0.444818]
[1725016784384,0.236843,59502.0,59501.0,0.444818]
[1725016784681,0.526843,59502.0,59501.0,0.444818]
[1725016789182,0.526843,59502.0,59501.0,0.084018]
[1725016789384,0.526843,59502.0,59501.0,0.444818]
[1725016790275,1.101843,59502.0,59489.0,0.0039]
[1725016790480,1.101843,59502.0,59487.0,0.084038]
[1725016790481,0.6508,59490.0,59487.0,0.084038]
[1725016790688,0.4808,59490.0,59488.0,0.0578]
[1725016791080,0.12,59490.0,59488.0,0.0578]
[1725016791293,0.204035,59490.0,59488.0,0.0578]
[1725016791484,0.29,59489.0,59488.0,0.0578]
[1725016791783,0.494036,59489.0,59488.0,0.0578]
[1725016792090,0.399,59489.0,59488.0,0.0578]
[1725016792487,0.483036,59489.0,59488.0,0.0578]
[1725016792883,0.488036,59489.0,59488.0,0.0588]
[1725016793385,0.488036,59489.0,59488.0,0.0598]
[1725016794085,0.495036,59489.0,59488.0,0.0598]
[1725016794391,0.205036,59489.0,59488.0,0.0598]
[1725016794590,0.52544142,59489.0,59488.0,0.0598]
[1725016794792,0.23544142,59489.0,59488.0,0.0598]
[1725016795091,0.52544142,59489.0,59488.0,0.0598]
[1725016796090,0.23544142,59489.0,59488.0,0.0598]
[1725016796292,0.52544142,59489.0,59488.0,0.0598]
[1725016797192,0.23544142,59489.0,59488.0,0.0598]
[1725016797493,0.52544142,59489.0,59488.0,0.0598]
[1725016801187,0.23544142,59489.0,59488.0,0.0598]
[1725016801388,0.15140542,59489.0,59488.0,1.982954]
[1725016801598,0.00025202,59495.0,59494.0,0.084029]
[1725016801801,0.00025202,59495.0,59494.0,0.734829]
[1725016802005,0.00025202,59495.0,59494.0,1.839069]
[1725016803002,0.01425202,59495.0,59494.0,1.840069]
[1725016803201,0.02425202,59495.0,59494.0,1.840069]
[1725016803709,0.02425202,59495.0,59494.0,1.841069]
[1725016804406,0.02425202,59495.0,59494.0,1.924098]
[1725016804604,0.00225202,59495.0,59494.0,1.923098]
[1725016805404,0.00025202,59495.0,59494.0,1.923098]
[1725016805604,0.00425202,59495.0,59494.0,1.923098]
[1725016805815,0.0305957,59502.0,59501.0,0.084019]
[1725016806113,0.6508,59515.0,59501.0,0.7075]
[1725016806318,0.183999,59515.0,59513.0,0.29]
[1725016806509,0.29,59514.0,59513.0,0.374002]
[1725016806707,0.38,59514.0,59513.0,0.374002]
[1725016806910,0.09,59514.0,59513.0,0.374002]
[1725016807206,0.38,59514.0,59513.0,0.374002]
[1725016807405,0.38,59514.0,59513.0,0.084002]
[1725016807907,0.38,59514.0,59513.0,0.085002]
[1725016808711,0.38,59514.0,59513.0,0.086002]
[1725016808912,0.386,59514.0,59513.0,0.086002]
[1725016809717,0.383,59514.0,59513.0,0.086002]
[1725016810103,0.383,59514.0,59513.0,0.002]
[1725016810513,0.467001,59514.0,59513.0,0.002]
[1725016811014,0.093,59514.0,59513.0,0.376002]
[1725016811213,0.383,59514.0,59513.0,0.376002]
[1725016811411,0.383,59514.0,59513.0,0.086002]
[1725016811613,0.383,59514.0,59513.0,0.376002]
[1725016811614,0.093,59514.0,59513.0,0.376002]
[1725016812510,0.383,59514.0,59513.0,0.376002]
[1725016812814,0.09,59514.0,59513.0,0.085002]
[1725016813015,0.385,59514.0,59513.0,0.086002]
[1725016813713,0.095,59514.0,59513.0,0.085002]
[1725016813919,0.095,59514.0,59513.0,0.086002]
[1725016814417,0.095,59514.0,59513.0,0.228802]
[1725016816016,0.095,59514.0,59513.0,0.086002]
[1725016819522,0.385,59514.0,59513.0,0.086002]
[1725016821515,0.095,59514.0,59513.0,0.376002]
[1725016825623,0.095,59514.0,59513.0,0.002]
[1725016825624,0.913802,59514.0,59513.0,0.002]
[1725016825827,0.998601,59514.0,59513.0,0.002]
[1725016826327,1.166603,59514.0,59513.0,0.002]
[1725016835624,0.805803,59514.0,59513.0,0.002]
[1725016835827,1.166603,59514.0,59513.0,0.002]
[1725016839234,1.108003,59514.0,59513.0,0.002]
[1725016839724,0.818003,59514.0,59513.0,0.002]
[1725016839925,1.108003,59514.0,59513.0,0.002]
[1725016841630,0.997803,59514.0,59513.0,0.002]
[1725016845221,1.04876372,59514.0,59513.0,0.002]
[1725016847935,0.68796372,59514.0,59513.0,0.002]
[1725016848135,1.04876372,59514.0,59513.0,0.002]
[1725016848338,0.68796372,59514.0,59513.0,0.002]
[1725016848532,1.04876372,59514.0,59513.0,0.002]
[1725016854038,0.96476272,59514.0,59513.0,0.002]
[1725016854546,0.88076172,59514.0,59513.0,0.086002]
[1725016854733,0.79676072,59514.0,59513.0,0.086002]
[1725016854936,0.79676072,59514.0,59513.0,0.13624814]
[1725016855343,0.14596072,59514.0,59513.0,0.086002]
[1725016855536,0.095,59514.0,59513.0,0.086002]
[1725016856234,0.34098297,59516.0,59515.0,0.083999]
[1725016856235,0.05098297,59516.0,59515.0,0.083999]
[1725016856544,0.05488297,59523.0,59518.0,0.083995]
[1725016856731,0.29,59528.0,59518.0,1.38997793]
[1725016856732,0.3647,59526.0,59518.0,1.38997793]
[1725016856932,0.3647,59526.0,59518.0,1.98997793]
[1725016857434,0.3647,59526.0,59518.0,1.92283]
[1725016857640,0.03066119,59523.0,59518.0,1.92283]
[1725016858239,0.00525202,59519.0,59518.0,1.92383]
[1725016858535,0.01525202,59519.0,59518.0,1.92383]
[1725016859232,0.01525202,59519.0,59518.0,1.92483]
[1725016859639,0.01525202,59519.0,59518.0,2.03583]
[1725016861844,0.01525202,59519.0,59518.0,2.119825]
[1725016862048,2e-08,59519.0,59518.0,2.119825]
[1725016862646,2e-08,59519.0,59518.0,2.34262]
[1725016862944,2e-08,59519.0,59518.0,2.34362]
[1725016863149,0.0039,59526.0,59525.0,0.16797]
[1725016863451,0.03100724,59528.0,59527.0,0.083982]
[1725016863652,0.03,59528.0,59527.0,0.513782]
[1725016863846,0.03,59528.0,59527.0,1.017742]
[1725016864349,0.03,59528.0,59527.0,1.185706]
[1725016864547,0.00025202,59531.0,59530.0,0.083978]
[1725016864754,0.01025202,59531.0,59530.0,0.373978]
[1725016865551,0.01025202,59531.0,59530.0,0.457956]
[1725016865935,0.01025202,59531.0,59530.0,0.818756]
[1725016867149,0.01025202,59531.0,59530.0,0.819756]
[1725016867548,0.01025202,59531.0,59530.0,0.820756]
[1725016868747,0.01025202,59531.0,59530.0,0.960516]
[1725016870054,0.01025202,59531.0,59530.0,1.044494]
[1725016872052,0.3608,59555.0,59531.0,0.50392]
[1725016872353,0.0039,59555.0,59554.0,0.167888]
[1725016872562,0.02,59555.0,59554.0,0.597648]
[1725016872764,0.083929,59565.0,59564.0,0.08393]
[1725016872944,0.203929,59565.0,59564.0,0.37393]
[1725016873145,0.2349001,59565.0,59564.0,0.37393]
[1725016873345,0.1509711,59565.0,59564.0,0.37393]
[1725016873858,0.1509711,59565.0,59564.0,0.73473]
[1725016874061,0.1509711,59565.0,59564.0,0.73573]